Cogmind - Beta 16.1 @@@ ROGUE MODE // 2026.04.29 @ 20:06:16 Player: AngelSpirit Result: Destroyed by Lightning with EMDS Performance ------------- Evolutions (4) 2000 Regions Visited (11) 2200 Robots Destroyed (132) 660 Value Destroyed (5282) 5282 Prototype IDs (36) 720 Alien Tech Used (0) 0 Bonus (4121) 4121 TOTAL SCORE: 14983 Bonus ------- High Alert Combat Kills 252 Follower Combat Kills 1591 Network Hubs Disabled 400 Delivered SUBCON Basin 2000 Registered with UFD 300 Met Optimus in HQ 500 Met Zhirov 300 Built Enhanced Grunts 300 A7 Reached Mainframe 300 Met R17 at Cetus 500 Friendly Fire -2322 Cogmind --------- Core Integrity 0/850 Matter 123/300 Energy 100/100 System Corruption 27% Temperature Hot (212) Movement Core (50) Location -6/Hub_04(d) Parts ------- > --- POWER (1) -------- (None) > --- PROPULSION (5) --- (None) > --- UTILITY (7) ------ Tech Extrapolator > --- WEAPON (2) ------- (None) > --- INVENTORY (5) ---- Improved Cryofiber Web Advanced Energy Well (500) Experimental Utility Shielding Centrium Medium Armor Plating Medium Regenerative Plating Peak State ------------ > --- POWER ------------ Compact Particle Reactor > --- PROPULSION ------- Gravmag System Antigrav Array Antigrav Array > --- UTILITY ---------- Improved Cryofiber Web Advanced Heat Sink High-capacity Storage Unit Advanced Gravity Neutralizer Core Analyzer Centrium Medium Armor Plating Tech Extrapolator > --- WEAPON ----------- Gatling Laser Advanced Variable Charge Gun > --- INVENTORY -------- Micro Antimatter Reactor Gravmag Array Advanced Sensor Array Weapon Mount Experimental Utility Shielding Damper Plating Medium Regenerative Plating A0-MCA's Component Scanner Gatling Laser Advanced Variable Charge Gun Advanced KE Penetrator Advanced KE Penetrator Heavy Missile Launcher DRS Beacon [Rating: 106] Favorites ----------- Power Ion Engine Engine Ion Engine Power Core Light Fission Core Reactor Cold Fusion Reactor Propulsion Wheel Treads Light Treads Wheel Wheel Hover Unit Antigrav Array Flight Unit Cooled Cesium-ion Thruster Utility Huge Storage Unit Device Seismic Detector Storage Huge Storage Unit Processor Tech Extrapolator Hackware Hacking Suite Protection Hardened Medium Armor Plating Weapon Subdweller Beam Cannon Energy Gun Gatling Laser Energy Cannon Subdweller Beam Cannon Ballistic Gun Subdweller Machine Gun Ballistic Cannon Light Cannon Launcher Heavy Missile Launcher Special Weapon Mining Laser Piercing Weapon Makeshift Spear Build | -11 -10 -10 -8 -8 -6 -6 -6 -6 -6 -6 -6 ------- Run | Yrd Mat Sub Rec Scr Fac Was Fac Ext Cet Arc Hub Slots Evolved 8 | . . . . . 8 . . . . . . Power . | . . . . . . . . . . . . Propulsion 3 | . . . . . 3 . . . . . . Utility 5 | . . . . . 5 . . . . . . Weapon . | . . . . . . . . . . . . Parts Attached 101 | 7 12 17 . 4 15 2 21 4 11 2 6 Power 12 | 1 . 1 . . 2 . 3 2 2 . 1 Engine 5 | 1 . 1 . . 1 . 1 1 . . . Core 3 | . . . . . 1 . 1 1 . . . Reactor 4 | . . . . . . . 1 . 2 . 1 Propulsion 20 | 2 2 3 . 1 4 . 3 . 3 1 1 Treads 3 | . 2 1 . . . . . . . . . Leg . | . . . . . . . . . . . . Wheel 11 | 2 . 2 . 1 2 . 3 . 1 . . Hover 4 | . . . . . . . . . 2 1 1 Flight 2 | . . . . . 2 . . . . . . Utility 36 | 2 4 3 . 2 9 2 6 1 4 1 2 Device 14 | 1 . 1 . . 3 1 5 . 1 1 1 Storage 5 | 1 2 . . 1 . . . . 1 . . Processor 5 | . . . . 1 3 . 1 . . . . Hackware 2 | . . . . . 1 . . . . . 1 Protection 10 | . 2 2 . . 2 1 . 1 2 . . Artifact . | . . . . . . . . . . . . Weapon 33 | 2 6 10 . 1 . . 9 1 2 . 2 Energy Gun 6 | 1 . . . . . . 2 1 1 . 1 Energy Cannon 6 | . 1 3 . 1 . . 1 . . . . Ballistic Gun 8 | 1 1 3 . . . . 3 . . . . Ballistic Cannon 7 | . 3 3 . . . . 1 . . . . Launcher 3 | . . . . . . . 2 . . . 1 Special Weapon 2 | . 1 . . . . . . . 1 . . Impact Weapon . | . . . . . . . . . . . . Slashing Weapon . | . . . . . . . . . . . . Piercing Weapon 1 | . . 1 . . . . . . . . . Special Melee Weapon . | . . . . . . . . . . . . Unidentified Prototypes 17 | . . . . . 3 . 8 . 5 . 1 Parts Lost 28 | . . 7 . . 4 . 6 . 1 . 10 Power 4 | . . . . . 1 . 2 . . . 1 Propulsion 10 | . . 2 . . 2 . 1 . 1 . 4 Utility 7 | . . 1 . . 1 . 2 . . . 3 Weapon 7 | . . 4 . . . . 1 . . . 2 Highest Loss Streak 4 | . . 2 . . 1 . 2 . 1 . 4 To Critical Strikes 2 | . . 1 . . . . . . 1 . . Average Backups 15 | 1 15 18 7 12 14 15 14 15 15 15 13 Power . | . . . . . . 1 . . 1 1 . Propulsion 3 | 1 4 4 2 3 1 1 2 3 2 . . Utility 5 | . 6 6 2 5 5 6 5 6 6 8 8 Weapon 5 | . 3 6 3 3 4 6 5 4 5 5 4 Tool/Special . | . . . . . . . . . . . . Unused Backups 38 | . 2 10 . 2 9 7 2 . 1 1 4 Power 3 | . . 1 . . . . 2 . . . . Propulsion 4 | . . . . . 2 2 . . . . . Utility 13 | . 1 5 . 1 3 1 . . . 1 1 Weapon 16 | . 1 3 . 1 4 3 . . 1 . 3 Tool/Special 2 | . . 1 . . . 1 . . . . . Average Slot Usage (%) 89 | . 100 99 100 77 80 77 81 86 85 80 67 Engine 10 | . 14 14 14 13 5 6 2 5 . . . Wheel 23 | . 23 26 28 26 23 18 16 20 18 . . Device 12 | . 12 11 14 9 11 5 18 17 13 20 10 Storage 10 | . 14 14 14 13 6 6 6 6 6 6 5 Processor 6 | . . . . 3 14 15 13 20 20 20 14 Protection 2 | . 1 2 . . 3 5 3 2 5 . 4 Energy Gun 1 | . . . . . . . . 6 8 13 9 Energy Cannon 8 | . 2 13 14 7 6 6 5 6 3 . . Ballistic Gun 2 | . 4 1 14 2 . . 3 . . . . Ballistic Cannon 5 | . 19 10 . . . . . . . . . Peak Build Rating 106 | 7 9 29 29 30 79 83 78 75 99 100 106 Average Rating 35 | 5 8 12 27 18 64 80 73 74 80 96 86 On Entrance 49 | . 7 9 29 12 30 78 83 75 72 96 100 Avg Prop Armor Cover (%) 8 | . . . . . 11 . . . 3 . 5 Naked Turns . | . . . . . . . . . . . . Heaviest Build 111 | 15 94 104 98 98 79 111 84 76 81 63 104 Greatest Support 77 | 20 40 40 26 28 66 54 72 66 68 77 77 Greatest Overweight (x) 10 | . 4 10 3 3 1 2 1 1 7 . 5 Average Overweight (x) 2 | . 2 3 3 2 . 1 1 1 . . . Largest Inventory Capacity 25 | 8 25 25 25 25 20 20 20 20 20 20 20 Average Capacity 22 | 7 21 25 25 22 20 20 20 20 20 20 19 Most Carried 25 | 4 20 25 25 20 20 20 20 20 20 20 20 Average Carried 18 | 1 15 21 23 16 16 17 19 19 19 19 15 Final Capacity 25 | 8 25 25 25 20 20 20 20 20 20 20 5 Final Carried 25 | 4 20 25 11 19 20 16 20 20 20 20 5 Class Distribution -------------------- 63% | Mutant 28% | Scavenger-Mutant 3% | Skirmisher 3% | Commander-Mutant Dominant Class ---------------- Mutant | -10/Materials Mutant | -10/Subcaves Scavenger-Mutant | -8/Recycling Scavenger-Mutant | -8/Scraptown Scavenger-Mutant | -6/Factory Scavenger-Mutant | -6/Waste Mutant | -6/Factory Mutant | -6/Extension Scavenger-Mutant | -6/Cetus Scavenger-Mutant | -6/Archives Mutant | -6/Hub_04(d) Resources | -11 -10 -10 -8 -8 -6 -6 -6 -6 -6 -6 -6 ----------- Run | Yrd Mat Sub Rec Scr Fac Was Fac Ext Cet Arc Hub Matter Collected 3672 | 196 706 904 . 302 227 49 501 336 160 76 215 Remotely . | . . . . . . . . . . . . Salvage Created 6914 | 12 780 507 . . 997 1611 808 1293 200 108 598 Parts 296 | 4 41 37 . . 43 26 42 54 24 9 16 Haulers Intercepted 5 | . 2 . . . 1 . 2 . . . . Recyclers Shooed 3 | . . . . . . . 2 1 . . . Parts Field Recycled . | . . . . . . . . . . . . Retrieved Matter . | . . . . . . . . . . . . Parts Self-Destructed 24 | . . 24 . . . . . . . . . Prevented . | . . . . . . . . . . . . Parts Restored . | . . . . . . . . . . . . Kills | -11 -10 -10 -8 -8 -6 -6 -6 -6 -6 -6 -6 ------- Run | Yrd Mat Sub Rec Scr Fac Was Fac Ext Cet Arc Hub Combat Hostiles Destroyed 98 | . 11 21 . . 13 6 12 17 2 . 16 Guns 20 | . . 2 . . . . 5 9 1 . 3 Cannons 49 | . 11 19 . . 7 3 3 6 . . . AOE 22 | . . . . . 5 . 4 . . . 13 Classes Destroyed 20 | 1 7 1 . . 4 1 . 4 . . 2 Worker 4 | . . . . . 2 . 2 . . . . Builder 5 | . 1 . . . . . 3 1 . . . Tunneler 1 | 1 . . . . . . . . . . . Hauler 5 | . 2 . . . 1 . 2 . . . . Recycler 4 | . 3 . . . 1 . . . . . . Operator 6 | . 3 . . . 1 . . 2 . . . Watcher 6 | . 3 . . . 2 . . . . . 1 Swarmer 10 | . 2 4 . . . . 4 . . . . Saboteur 1 | . . . . . . . . . . . 1 Grunt 40 | . 9 2 . . 9 . 3 7 . . 10 Brawler 1 | . . . . . . . . . . . 1 Duelist 4 | . . . . . 1 . . 1 . . 2 Protector 1 | . . . . . . . . . . . 1 Sentry 8 | . . . . . 1 . 1 6 . . . Specialist 1 | . . . . . . . . 1 . . . Hunter 1 | . . . . . . . . 1 . . . Programmer 6 | . . . . . 2 . 4 . . . . Behemoth 1 | . . . . . . . . 1 . . . Compactor 6 | . . . . . . 6 . . . . . Cetus Guard 2 | . . . . . . . . . 2 . . Lightning 1 | . . . . . . . . . . . 1 Subdweller 15 | . . 15 . . . . . . . . . Thug 1 | . . . . . . . . . 1 . . Savage 1 | . . . . . . . . 1 . . . Best Kill Streak 13 | 1 4 4 . . 6 2 5 2 2 . 13 Combat Bots Only 13 | . 2 4 . . 5 2 5 2 2 . 13 Max Kills in Single Turn 6 | 1 1 1 . . 6 1 3 2 1 . 3 Gunslinging . | . . . . . . . . . . . . Exploded 5 | . . . . . 5 . 3 . . . 3 Melee . | . . . . . . . . . . . . Uniques/NPCs Destroyed 1 | . . . . . . . . . 1 . . A7 (-6/Cetus) Combat | -11 -10 -10 -8 -8 -6 -6 -6 -6 -6 -6 -6 -------- Run | Yrd Mat Sub Rec Scr Fac Was Fac Ext Cet Arc Hub Hostile Shots Fired 717 | . 44 90 . . 91 . 147 117 16 . 212 Missed 247 | . 10 29 . . 32 . 60 43 8 . 65 Hits 470 | . 34 61 . . 59 . 87 74 8 . 147 Melee 4 | . . . . . . . . . . . 4 Projectile 466 | . 34 61 . . 59 . 87 74 8 . 143 AOE 2 | . . 1 . . . . . . . . 1 Critical Strikes 21 | . 1 4 . . 1 . 4 . 2 . 9 Part Disruptions 1 | . . . . . . . . . . . 1 Damage Taken 6990 | . 370 1195 . . 603 . 1322 549 179 . 2772 Core 1122 | . 26 218 . . 79 . 195 92 27 . 485 Absorbed by Shields 445 | . . . . . 40 . 109 244 52 . . Redirected to Shielding 33 | . . . . . 33 . . . . . . Ignored by Resistances 1023 | . . . . . . . . . . . 1023 Regen/Repaired (Parts) 290 | . 52 . . . 238 . . . . . . Core Remaining (%) 51 | 100 . . . 2 . . . . . . . Volleys Fired 507 | 5 66 129 . . 47 50 76 66 25 8 35 Largest 2 | 2 2 2 . . 1 1 2 2 2 2 2 Hottest 240 | 70 100 160 . . 40 40 115 115 160 160 240 Shots Fired 765 | 10 103 212 . . 47 51 116 124 44 15 43 Gun 207 | 10 10 7 . . . . 51 60 30 15 24 Cannon 518 | . 89 190 . . 47 51 64 64 13 . . Launcher 20 | . . . . . . . 1 . . . 19 Special 20 | . 4 15 . . . . . . 1 . . Kinetic 269 | 5 87 133 . . . . 44 . . . . Thermal 475 | 5 16 79 . . 47 51 71 124 43 15 24 Explosive 19 | . . . . . . . . . . . 19 Electromagnetic 1 | . . . . . . . 1 . . . . Robot Hit Streak 22 | 9 12 22 . . 12 17 13 12 16 11 12 Robot Miss Streak 7 | . 5 2 . . 2 3 4 7 4 2 4 Penetration Max . | . . . . . . . . . . . . Secondary Targets 1 | . . . . . . . . . . . 1 Max Gunslinging Chain 1 | . . . . . . . . . . . 1 Shots Hit Robots 431 | 9 50 106 . . 24 37 63 61 37 14 30 Core Hits 251 | 2 26 29 . . 17 6 27 39 28 20 57 Critical Kills 11 | . . . . . 1 3 2 4 1 . . Critical Parts Destroyed 3 | . . . . . . . 1 2 . . . Critical Strikes 18 | . 2 2 . . 1 3 3 6 1 . . Meltdown 8 | . . . . . 1 3 1 2 1 . . Destroy 6 | . . . . . . . 2 4 . . . Blast 4 | . 2 2 . . . . . . . . . Melee Attacks 2 | . . 2 . . . . . . . . . Impact . | . . . . . . . . . . . . Slashing . | . . . . . . . . . . . . Piercing 2 | . . 2 . . . . . . . . . Sneak Attacks . | . . . . . . . . . . . . Combat Hostiles . | . . . . . . . . . . . . Follow-up Attacks . | . . . . . . . . . . . . Damage Inflicted 16288 | 119 899 2175 . . 1922 2090 2103 2236 1022 391 3331 Guns 3950 | 119 84 166 . . . . 930 1062 736 391 462 Cannons 8485 | . 815 2009 . . 1232 2090 879 1174 286 . . Explosions 3853 | . . . . . 690 . 294 . . . 2869 Melee . | . . . . . . . . . . . . Ramming . | . . . . . . . . . . . . Kinetic 2959 | 54 739 1388 . . . . 778 . . . . Thermal 10373 | 65 160 787 . . 1922 2090 1238 2236 1022 391 462 Explosive 2869 | . . . . . . . . . . . 2869 Electromagnetic 87 | . . . . . . . 87 . . . . Impact . | . . . . . . . . . . . . Slashing . | . . . . . . . . . . . . Piercing . | . . . . . . . . . . . . Highest Corruption 28 | . . . . . 2 25 28 28 28 28 26 Average Corruption 21 | . . . . . 2 18 26 28 28 24 23 Corruption Purged 6 | . . . . . . . . . . 6 . Corruption Blocked . | . . . . . . . . . . . . Effects 230 | . . . . . 12 24 82 63 25 9 15 Message Errors 45 | . . . . . 5 4 15 14 3 2 2 Matter Fused 49 | . . . . . 4 3 24 12 5 1 . Heat Flow Errors 35 | . . . . . . 4 11 11 5 1 3 Energy Discharges 21 | . . . . . 2 4 5 3 3 2 2 Parts Rejected 3 | . . . . . . . 1 1 . . 1 Parts Fused 4 | . . . . . . . . 2 2 . . Data Loss (minor) 25 | . . . . . . 3 6 12 1 2 1 Data Loss (major) 10 | . . . . . 1 1 7 1 . . . Misfires 8 | . . . . . . 2 2 3 1 . . Alerts 5 | . . . . . . . 4 . . . 1 Misdirections 5 | . . . . . . 2 . 1 . . 2 Weapon Failures 20 | . . . . . . 1 7 3 5 1 3 Overload Shots 9 | . . . . . . . . 7 1 . 1 Overflow Damage 283 | . . . . . 153 . 63 1 . . 66 Projectiles 136 | . . . . . 92 . 43 1 . . . Explosions 147 | . . . . . 61 . 20 . . . 66 Melee . | . . . . . . . . . . . . Knockbacks 10 | . 4 6 . . . . . . . . . Impact . | . . . . . . . . . . . . Kinetic 10 | . 4 6 . . . . . . . . . Secondary . | . . . . . . . . . . . . Self-Inflicted Damage 237 | . . . . . . . 113 . . . 124 Shots 5 | . . . . . . . 2 . . . 3 Rammed . | . . . . . . . . . . . . Targets Rammed . | . . . . . . . . . . . . Kicked . | . . . . . . . . . . . . Crushed . | . . . . . . . . . . . . Highest Temperature 590 | 27 344 246 . . 102 299 247 76 48 . 590 Average Temperature 103 | 12 115 90 . . 28 92 77 39 21 . 211 Received Heat Transfer 1630 | . 207 138 . . 191 . 262 148 9 . 675 Effects 7 | . . . . . . . . . . . 7 Shutdowns 3 | . . . . . . . . . . . 3 Matter Decay 1 | . . . . . . . . . . . 1 Damage (minor) 2 | . . . . . . . . . . . 2 Damage (core) 1 | . . . . . . . . . . . 1 Siege Activations . | . . . . . . . . . . . . Martial Activations . | . . . . . . . . . . . . Shielding Activations . | . . . . . . . . . . . . Robots Disrupted . | . . . . . . . . . . . . Combat Hostiles . | . . . . . . . . . . . . Robots Corrupted . | . . . . . . . . . . . . Combat Hostiles . | . . . . . . . . . . . . Parts Fried 3 | . . . . . . . . 2 1 . . Impact Corruptions . | . . . . . . . . . . . . Robots Melted 8 | . . . . . 1 3 1 2 1 . . Combat Hostiles 7 | . . . . . 1 3 . 2 1 . . Parts Melted 27 | . . 1 . . . 5 1 16 3 . 1 Heat Transferred 9838 | 185 333 1073 . . 450 . 1172 3402 1578 900 745 Parts Sabotaged . | . . . . . . . . . . . . Parts Stolen . | . . . . . . . . . . . . Parts Stripped . | . . . . . . . . . . . . Power Chain Reactions . | . . . . . . . . . . . . Alert | -11 -10 -10 -8 -8 -6 -6 -6 -6 -6 -6 -6 ------- Run | Yrd Mat Sub Rec Scr Fac Was Fac Ext Cet Arc Hub Maximum Alert Level 3 | . . . . . 1 . 1 3 2 1 2 Low Security (%) 80 | 100 100 . 100 . 87 100 91 57 . 93 31 Level 1 9 | . . . . . 12 . 8 17 14 6 42 Level 2 8 | . . . . . . . . 18 85 . 25 Level 3 . | . . . . . . . . 6 . . . Level 4 . | . . . . . . . . . . . . Level 5 . | . . . . . . . . . . . . High Security . | . . . . . . . . . . . . Max Security . | . . . . . . . . . . . . Peak Influence 766 | 5 127 . 62 . 366 128 252 766 537 379 516 Initial 418 | . . . 52 . . 128 . 115 418 180 132 Average 122 | . 41 . 18 . 96 38 59 253 448 159 288 Influence Increases 4872 | 5 515 160 54 . 853 7 695 1431 309 299 544 Destroy 0b10 Robot/C 2180 | . 220 120 . . 260 . 240 760 160 120 300 Destroy 0b10 Robot/NC 200 | 5 60 . . . 35 . 35 25 10 20 10 Destroy Leader 324 | . 60 10 . . 56 . 74 72 . . 52 Allied During Kill 621 | . . . . . . . . 362 119 140 . Trap Triggered on 0b10 20 | . . . . . 20 . . . . . . Successful Hack 141 | . 47 . 24 . 31 . 34 5 . . . Select Force Hacks 140 | . 60 . 30 . . . . . . . 50 Disable Machine 450 | . 30 . . . 105 . 165 90 15 15 30 Anti-Garrison Action 200 | . . . . . 200 . . . . . . Destroy Structure 296 | . 8 . . . 56 7 102 57 5 4 57 Partial Spotted 45 | . 30 . . . 15 . . . . . . Lose Combat Pursuer 255 | . . 30 . . 75 . 45 60 . . 45 Influence Decreases 4396 | 5 462 103 164 . 487 373 458 920 606 371 447 Entered New Map 1292 | . . 26 58 . . 238 . 122 330 271 247 Time Decay 2504 | 5 462 77 106 . 457 135 398 458 206 100 100 Lost Part 200 | . . . . . 30 . 60 . 10 . 100 Lost Ally 400 | . . . . . . . . 340 60 . . Squads Dispatched 32 | . 5 . . . 8 . 7 4 . . 8 Investigation 9 | . 3 . . . 3 . 1 . . . 2 Extermination 6 | . . . . . 3 . 3 . . . . Reinforcement 11 | . 2 . . . 2 . 3 3 . . 1 Assault 5 | . . . . . . . . 1 . . 4 Garrison 1 | . . . . . . . . . . . 1 Intercept . | . . . . . . . . . . . . Searches Triggered . | . . . . . . . . . . . . Construction Impeded 2 | . . . . . . . 1 1 . . . Haulers Reinforced 1 | . . . . . . . 1 . . . . Active Scanning Responses . | . . . . . . . . . . . . Cargo Convoy Interrupts . | . . . . . . . . . . . . Stealth | -11 -10 -10 -8 -8 -6 -6 -6 -6 -6 -6 -6 --------- Run | Yrd Mat Sub Rec Scr Fac Was Fac Ext Cet Arc Hub Distress Signals 6 | . 1 . . . . . 1 1 2 . 1 Communications Jammed . | . . . . . . . . . . . . Distress Signals . | . . . . . . . . . . . . Times Spotted 168 | . 20 21 . . 24 6 16 36 10 . 35 Peak Tracking Total 12 | . 4 5 . . 5 2 4 5 5 . 12 Tactical Retreats 11 | . . 1 . . 2 1 2 3 . . 2 Traps | -11 -10 -10 -8 -8 -6 -6 -6 -6 -6 -6 -6 ------- Run | Yrd Mat Sub Rec Scr Fac Was Fac Ext Cet Arc Hub Traps Triggered 20 | . 1 3 . . 3 . 4 8 . . 1 Indirectly . | . . . . . . . . . . . . Trap Hack Attempts . | . . . . . . . . . . . . Triggered . | . . . . . . . . . . . . Disarmed . | . . . . . . . . . . . . Reprogrammed . | . . . . . . . . . . . . Reused 2 | . . . . . 2 . . . . . . Traps Extracted . | . . . . . . . . . . . . Installed 2 | . . . . . 2 . . . . . . Triggered 2 | . . . . . 2 . . . . . . Most Traps Carried 2 | . . 2 2 2 2 . . . . . . Machines | -11 -10 -10 -8 -8 -6 -6 -6 -6 -6 -6 -6 ---------- Run | Yrd Mat Sub Rec Scr Fac Was Fac Ext Cet Arc Hub Machines Disabled 33 | . 4 . . . 7 . 11 7 1 1 2 Max in Single Turn 5 | . 1 . . . 5 . 4 1 1 . 1 Garrison Access 3 | . . . . . 1 . . . . . 2 Network Hub 2 | . . . . . . . . . . . 2 Machines Repaired . | . . . . . . . . . . . . Machines Dismantled . | . . . . . . . . . . . . Machines Sabotaged 1 | . . . . . . . . . . . 1 Overloaded Fab Kills . | . . . . . . . . . . . . Hacking | -11 -10 -10 -8 -8 -6 -6 -6 -6 -6 -6 -6 --------- Run | Yrd Mat Sub Rec Scr Fac Was Fac Ext Cet Arc Hub Machines Accessed 47 | . 9 4 4 1 9 . 13 5 . . 2 Terminals 27 | . 6 . 3 . 5 . 6 5 . . 2 Fabricators 6 | . . . . . 2 . 4 . . . . Repair Stations 3 | . 1 . . . 1 . 1 . . . . Recycling Units 5 | . 2 . 1 . . . 2 . . . . Scanalyzers . | . . . . . . . . . . . . Garrison Access 1 | . . . . . 1 . . . . . . Total Hacks 132 | . 36 7 17 4 27 . 28 9 . . 4 Successful 64 | . 23 7 11 4 9 . 7 2 . . 1 Failed 68 | . 13 . 6 . 18 . 21 7 . . 3 Catastrophic 17 | . 4 . 1 . 4 . 5 2 . . 1 Database Lockouts . | . . . . . . . . . . . . Manual 70 | . 26 . 13 . 9 . 14 4 1 . 3 Terminals 85 | . 28 . 14 . 14 . 16 9 . . 4 Fabricators 15 | . . . . . 8 . 7 . . . . Repair Stations 7 | . 2 . . . 3 . 2 . . . . Recycling Units 12 | . 6 . 3 . . . 3 . . . . Scanalyzers . | . . . . . . . . . . . . Garrison Access 2 | . . . . . 2 . . . . . . Terminal Hacks 33 | . 11 7 5 4 3 . 2 1 . . . Record 4 | . . 4 . . . . . . . . . Part Schematic 4 | . 3 . 1 . . . . . . . . Robot Analysis 7 | . 3 . . 4 . . . . . . . Prototype ID Bank 1 | . 1 . . . . . . . . . . Open Door 1 | . . 1 . . . . . . . . . Branch Access Points 2 | . . . . . 1 . 1 . . . . Emergency Access Points 1 | . 1 . . . . . . . . . . Terminal Index 2 | . . . 1 . 1 . . . . . . Alert Level 1 | . . . . . 1 . . . . . . Locate Traps 3 | . 1 . . . . . 1 1 . . . Security Status 1 | . . . 1 . . . . . . . . Recall Reinforcements 1 | . 1 . . . . . . . . . . Registered Components 1 | . 1 . . . . . . . . . . Zone Layout 2 | . . . 2 . . . . . . . . Proto ID Catalog 1 | . . 1 . . . . . . . . . Release Object 1 | . . 1 . . . . . . . . . Fabricator Hacks 3 | . . . . . 1 . 2 . . . . Network Status 2 | . . . . . 1 . 1 . . . . Load Schematic 1 | . . . . . . . 1 . . . . Repair Station Hacks 5 | . 2 . . . 2 . 1 . . . . Scan Component 3 | . 1 . . . 1 . 1 . . . . Repair 2 | . 1 . . . 1 . . . . . . Recycling Unit Hacks 3 | . 1 . 1 . . . 1 . . . . Retrieve Components 3 | . 1 . 1 . . . 1 . . . . Scanalyzer . | . . . . . . . . . . . . Garrison Access Hacks . | . . . . . . . . . . . . Unauthorized Hacks 20 | . 9 . 5 . 3 . 1 1 . . 1 Terminals 15 | . 7 . 4 . 1 . 1 1 . . 1 Botnet 10 | . 5 . 2 . 1 . 1 1 . . . Operators 1 | . 1 . . . . . . . . . . Skim 3 | . 1 . 2 . . . . . . . . Sabotage 1 | . . . . . . . . . . . 1 Fabricators 1 | . . . . . 1 . . . . . . Prioritize 1 | . . . . . 1 . . . . . . Repair Stations . | . . . . . . . . . . . . Recycling Units 3 | . 2 . 1 . . . . . . . . Tunnel 3 | . 2 . 1 . . . . . . . . Scanalyzers . | . . . . . . . . . . . . Garrison Access 1 | . . . . . 1 . . . . . . Jam 1 | . . . . . 1 . . . . . . Data Cores Recovered 1 | . . . . . 1 . . . . . . Used 1 | . . . . . 1 . . . . . . Hacking Detections 38 | . 7 . 3 . 9 . 12 5 . . 2 Full Trace Events 4 | . . . 1 . 1 . 1 . . . 1 Feedback Events 1 | . . . . . 1 . . . . . . Hackware Fried 1 | . . . . . 1 . . . . . . Feedback Blocked . | . . . . . . . . . . . . Robot Schematics Acquired . | . . . . . . . . . . . . Robots Built . | . . . . . . . . . . . . Authchips . | . . . . . . . . . . . . Time . | . . . . . . . . . . . . Total Robot Build Rating . | . . . . . . . . . . . . Part Schematics Acquired 42 | . 3 . 1 11 12 1 7 4 2 1 . Parts Built . | . . . . . . . . . . . . Authchips . | . . . . . . . . . . . . Time . | . . . . . . . . . . . . Total Part Build Rating . | . . . . . . . . . . . . Part Studies Acquired . | . . . . . . . . . . . . Parts Repaired 2 | . 1 . . . 1 . . . . . . Time 70 | . 26 . . . 44 . . . . . . Parts Recycled . | . . . . . . . . . . . . Recycled Matter . | . . . . . . . . . . . . Retrieved Matter . | . . . . . . . . . . . . Retrieved Components 11 | . 2 . . . . . 9 . . . . Parts Scanalyzed . | . . . . . . . . . . . . Part Schematics Acquired . | . . . . . . . . . . . . Parts Damaged . | . . . . . . . . . . . . Bothacking | -11 -10 -10 -8 -8 -6 -6 -6 -6 -6 -6 -6 ------------ Run | Yrd Mat Sub Rec Scr Fac Was Fac Ext Cet Arc Hub Used RIF Installer . | . . . . . . . . . . . . Robots Hacked . | . . . . . . . . . . . . Non-combat . | . . . . . . . . . . . . Combat . | . . . . . . . . . . . . Robot Hacks Applied . | . . . . . . . . . . . . Relay Couplers Released 1 | . . . . . . . . . . . 1 Machine Destruction 1 | . . . . . . . . . . . 1 Fabnet Peak Effective % . | . . . . . . . . . . . . Robots Rewired 14 | . . . . . . . . 14 . . . Allies Hacked . | . . . . . . . . . . . . Hacks Repelled . | . . . . . . . . . . . . Allies | -11 -10 -10 -8 -8 -6 -6 -6 -6 -6 -6 -6 -------- Run | Yrd Mat Sub Rec Scr Fac Was Fac Ext Cet Arc Hub Total Allies 30 | . . . . . . . . 25 5 . . Largest Group 8 | . . . . . . . . 8 8 6 . Highest-Rated Group 689 | . . . . . . . . 380 689 506 . Highest-Rated Ally 159 | . . . . . . . . 159 152 96 . Initial UFD Resources 22 | . . . . . 22 22 22 22 22 22 22 Total Orders 6 | . . . . . . . . 2 2 2 . STAY 3 | . . . . . . . . 1 1 1 . FOLLOW 3 | . . . . . . . . 1 1 1 . Ally Attacks 271 | . . . . . . . . 184 60 27 . Total Damage 6632 | . . . . . . . . 4180 1543 909 . Kills 39 | . . . . . . . . 23 9 7 . Allies Corrupted . | . . . . . . . . . . . . Allies Melted 2 | . . . . . . . . 2 . . . Intel | -11 -10 -10 -8 -8 -6 -6 -6 -6 -6 -6 -6 ------- Run | Yrd Mat Sub Rec Scr Fac Was Fac Ext Cet Arc Hub Active Infowar (turns) 11907 | 18 1141 4436 384 1881 1484 230 1566 757 . . 10 Optics 1713 | . . . . . 1483 230 . . . . . Sensors 7798 | . . 3854 . . 1381 230 1566 757 . . 10 Seismic 4764 | 18 1141 582 384 1881 758 . . . . . . Robot Analysis Total 7 | . 3 . . 4 . . . . . . . Derelict Logs Recovered 7 | . . 3 . 4 . . . . . . . Drone Launches . | . . . . . . . . . . . . Drone Recoveries . | . . . . . . . . . . . . Exploration | -11 -10 -10 -8 -8 -6 -6 -6 -6 -6 -6 -6 ------------- Run | Yrd Mat Sub Rec Scr Fac Was Fac Ext Cet Arc Hub Turns Passed 15701 | 71 1308 5568 384 2811 1487 472 1600 1159 426 207 208 Spaces Moved 9790 | 53 756 3045 280 2188 1100 318 1127 518 192 90 123 Core 8 | 3 . . . . . . . . . . 5 Treads 77 | . 54 23 . . . . . . . . . Legs . | . . . . . . . . . . . . Wheels 9469 | 50 702 3022 280 2188 1100 318 1127 518 164 . . Hover 236 | . . . . . . . . . 28 90 118 Flight . | . . . . . . . . . . . . Fastest Speed 50 | 50 80 135 135 105 92 108 108 108 56 52 50 Average Speed 123 | 78 128 138 135 127 103 116 111 108 103 54 71 Slowest Speed 320 | 80 320 320 135 145 111 123 115 108 185 56 310 Overloaded Moves . | . . . . . . . . . . . . Propulsion Burnouts . | . . . . . . . . . . . . Robots Hopped . | . . . . . . . . . . . . Potential Cave-ins 2 | . . . . . 2 . . . . . . Cave-ins Triggered . | . . . . . . . . . . . . Exploration Rate (%) 61 | 3 96 95 60 91 33 97 34 67 63 75 22 Regions Visited 11 Branch Regions 7 Pre-discovered Areas 8 | . 2 2 1 3 . . . . . . . Known Exits Taken 4 | . . . . . . . 1 1 1 1 . Unknown Exits Taken 5 | 1 1 1 1 1 . . . . . . . Scrap Searched 15 | . . 7 . 8 . . . . . . . Spaces Dug 38 | . 3 4 . . 16 . 14 . . . 1 Terrain Destroyed 288 | . 3 8 . . 61 7 119 21 3 . 66 Melee 1 | . . 1 . . . . . . . . . Projectile 98 | . 3 7 . . 19 7 34 21 3 . 4 AOE 189 | . . . . . 42 . 85 . . . 62 Terrain Rammed . | . . . . . . . . . . . . Walls Destroyed . | . . . . . . . . . . . . Machines Disabled . | . . . . . . . . . . . . Actions | -11 -10 -10 -8 -8 -6 -6 -6 -6 -6 -6 -6 --------- Run | Yrd Mat Sub Rec Scr Fac Was Fac Ext Cet Arc Hub Total 12607 | 68 973 4138 286 2223 1409 385 1353 989 366 228 189 Wait 1612 | . 89 854 5 8 204 2 92 125 107 121 5 Move 9780 | 52 755 3044 279 2187 1100 317 1126 517 191 89 123 Hop . | . . . . . . . . . . . . Pick Up 113 | 4 22 21 1 12 21 2 12 4 10 2 2 Fast Attach 50 | 7 4 . . 1 8 . 12 2 9 4 3 Attach 40 | . 1 10 . 3 9 1 10 . 1 . 5 Detach 22 | . 2 1 . 5 2 3 3 . 1 . 5 Swap 114 | . 24 53 . 2 2 1 11 9 5 . 7 Drop 105 | . 10 24 1 5 14 9 11 6 17 4 4 Fire 507 | 5 66 129 . . 47 50 76 66 25 8 35 Melee 2 | . . 2 . . . . . . . . . Ram . | . . . . . . . . . . . . Kick . | . . . . . . . . . . . . Crush . | . . . . . . . . . . . . Escape Stasis 58 | . . . . . . . . 58 . . . Rewire 202 | . . . . . . . . 202 . . . Trap 2 | . . . . . 2 . . . . . . Miscellaneous . | . . . . . . . . . . . . Route ------- -11/Scrapyard -10/Materials (discovered 6 exits: [*Mat x3] / [*Min x2] / *Sub) -10/Subcaves (discovered 4 exits: [*Mat x2] / *Rec / *Scr) -8/Recycling -8/Scraptown (discovered 2 exits: *Fac x2) -6/Factory (discovered 5 exits: [*Fac] / Low x2 / Ext x2) -6/Waste -6/Factory (discovered 4 exits: Low x2 / *Ext x2) -6/Extension (discovered 2 exits: [*Fac] / *Cet) -6/Cetus (discovered 2 exits: [*Fac] / *Arc) -6/Archives -6/Hub_04(d) (discovered 1 exit: [*Fac]) History --------- Turn | Location | Event 6 | -11/Scrapyard | Discovered new exit (range 15) 72 | -11/Scrapyard | Entered Materials 231 | -10/Materials | Discovered new exit (range 15) 320 | -10/Materials | Build established: Mutant 449 | -10/Materials | Discovered new exit (range 16) 903 | -10/Materials | Discovered new exit (range 16) 995 | -10/Materials | Discovered new exit (range 15) 1024 | -10/Materials | Repaired Lgt. Treads 1155 | -10/Materials | Discovered new exit (range 3) 1375 | -10/Materials | Discovered new exit (range 5) 1380 | -10/Materials | Entered Subcaves 1381 | -10/Subcaves | Approached by a straggling Scientist 1393 | -10/Subcaves | Learned location of Mines (-10) 1425 | -10/Subcaves | Discovered new exit (range 13) 1432 | -10/Subcaves | Visited Clippyterm 1437 | -10/Subcaves | Learned Factory fabricator intel 1511 | -10/Subcaves | Shifting Twisted Machinery released Sub. Machine Gun 1545 | -10/Subcaves | Shifting Twisted Machinery released Mak. Spear 1846 | -10/Subcaves | Core integrity fell below 50% 2132 | -10/Subcaves | A swath of the cavern ceiling suddenly collapsed 2227 | -10/Subcaves | Discovered new exit (range 15) 2268 | -10/Subcaves | Curiously followed by a Cobbler waking with a query about "LVR3C" 2529 | -10/Subcaves | Shifting Twisted Machinery released Sub. Power Source 2565 | -10/Subcaves | Learned 8 Materials zone layouts 2639 | -10/Subcaves | A Subdweller sparked back to life 2755 | -10/Subcaves | Found Prototype Energy Cannon 3027 | -10/Subcaves | Learned Materials garrison access intel 3066 | -10/Subcaves | Learned location of Zion (-7) 3066 | -10/Subcaves | Met a Zionite searching for "candidates" 3284 | -10/Subcaves | Disturbed a concealed Subdweller 4931 | -10/Subcaves | Core integrity fell below 20% 4940 | -10/Subcaves | Visited 4L-MR0's lab 4945 | -10/Subcaves | Identified Powered Cannon 4977 | -10/Subcaves | A swath of the cavern ceiling suddenly collapsed 5448 | -10/Subcaves | Shifting Twisted Machinery released Sub. Monowheel 6741 | -10/Subcaves | Found SUBCON Basin 6761 | -10/Subcaves | Build established: Scavenger-Mutant 6943 | -10/Subcaves | Discovered new exit (range 5) 6948 | -10/Subcaves | Entered Recycling 7264 | -8/Recycling | Scanned before Scraplab entrance 7283 | -8/Recycling | Entered Scraplab 7329 | -8/Recycling | Discovered new exit (range 3) 7332 | -8/Recycling | Entered Scraptown 7493 | -8/Scraptown | Visited Comm Corps 7509 | -8/Scraptown | Visited Cyclists 7521 | -8/Scraptown | Visited Bundlers 7553 | -8/Scraptown | Learned location of Extension (-6) 7773 | -8/Scraptown | Scanned Subdweller tech in exchange for log data 7777 | -8/Scraptown | Learned Research terminal intel 7778 | -8/Scraptown | Learned Factory stockpile data 7780 | -8/Scraptown | Learned location of Armory (-3) 7796 | -8/Scraptown | Discovered new exit (range 11) 7884 | -8/Scraptown | Visited Symbiants 7919 | -8/Scraptown | Visited Junk Repository 8012 | -8/Scraptown | Visited TADAMA 8062 | -8/Scraptown | Visited UFD Registry 8062 | -8/Scraptown | Registered with UFD as "Wavespreader" 8097 | -8/Scraptown | Entered Cyclist Reading Room 8277 | -8/Scraptown | Guru changed UFD alias to "Technobay" 8393 | -8/Scraptown | Visited A0-MCA Data Center 8420 | -8/Scraptown | Visited Curators Association 8465 | -8/Scraptown | Visited Chapter 10 8553 | -8/Scraptown | Visited Derelict Rescue Squad 8561 | -8/Scraptown | Found DRS Beacon 8586 | -8/Scraptown | Visited Scrap Suit Storage 8618 | -8/Scraptown | Visited LU-1G1's Boring Crew 8640 | -8/Scraptown | Visited Science Testing Area 8664 | -8/Scraptown | Visited Scrapoid Research Area 8744 | -8/Scraptown | Visited Analyses Database 8806 | -8/Scraptown | Given a C rating by A0-MCA 8811 | -8/Scraptown | Found A0-MCA's Component Scanner 8912 | -8/Scraptown | Attached Powered Cannon, gained temporary slot: Power 9423 | -8/Scraptown | Tech Extrapolator generated special schematic: Deep Structural Scanner 9500 | -8/Scraptown | Build established: Mutant 10078 | -8/Scraptown | Met Optimus 10078 | -8/Scraptown | Accepted into 0bPrime 10139 | -8/Scraptown | Discovered new exit (range 3) 10143 | -8/Scraptown | Entered Factory 10143 | -6/Factory | Evolved 8 slots: Propulsion x3, Utility x5 10145 | -6/Factory | Loaded intel: 5 fabricator locations 10302 | -6/Factory | Tech Extrapolator generated special schematic: Machine Rigger 10427 | -6/Factory | Build established: Scavenger-Mutant 10429 | -6/Factory | Identified exit to Lower Caves 10429 | -6/Factory | Identified exit to Extension 10590 | -6/Factory | Tech Extrapolator generated special schematic: Energy Deflector 10719 | -6/Factory | Hacking Suite fried by hacking feedback 10960 | -6/Factory | Repaired Arm. Huge Wheel 11411 | -6/Factory | Build established: Scavenger-Skirmisher 11480 | -6/Factory | Discovered new exit (range 22) 11630 | -6/Factory | Sucked down chute 11630 | -6/Factory | Entered Waste 11645 | -6/Waste | EMP discharged 11648 | -6/Waste | Spotted C-40 Crusher 11650 | -6/Waste | Destroyed C-40 Crusher 11651 | -6/Waste | Spotted C-40 Crusher 11664 | -6/Waste | Destroyed C-40 Crusher 11685 | -6/Waste | Found Damper Plating 11699 | -6/Waste | Spotted C-40 Crusher 11745 | -6/Waste | EMP discharged 11745 | -6/Waste | System corruption reached 10% 11762 | -6/Waste | Build established: Skirmisher 11762 | -6/Waste | Spotted C-40 Crusher 11794 | -6/Waste | Spotted C-40 Crusher 11796 | -6/Waste | Destroyed C-40 Crusher 11845 | -6/Waste | EMP discharged 11855 | -6/Waste | Destroyed C-40 Crusher 11863 | -6/Waste | Spotted C-40 Crusher 11869 | -6/Waste | Destroyed C-40 Crusher 11945 | -6/Waste | EMP discharged 11969 | -6/Waste | Destroyed C-40 Crusher 12042 | -6/Waste | Discovered new exit (range 15) 12045 | -6/Waste | EMP discharged 12101 | -6/Waste | Identified exit to Factory 12102 | -6/Waste | Entered Factory 12295 | -6/Factory | Found Prototype Launcher 12397 | -6/Factory | Build established: Mutant 12906 | -6/Factory | Identified Scatter Rocket Array 13702 | -6/Factory | Entered Extension 13767 | -6/Extension | Rescued a captive Derelict 13768 | -6/Extension | Rescued a captive Derelict 13791 | -6/Extension | Rescued a captive Derelict 13793 | -6/Extension | Rescued a captive Derelict 13882 | -6/Extension | Rescued a captive Derelict 13885 | -6/Extension | Rescued a captive Derelict 13901 | -6/Extension | Lost 3 allies 13904 | -6/Extension | Rescued a captive Derelict 13905 | -6/Extension | Rescued a captive Derelict 14013 | -6/Extension | Lost 4 allies 14035 | -6/Extension | Rescued A7 14294 | -6/Extension | Spotted B-75 Beast 14295 | -6/Extension | Spotted B-75 Beast 14308 | -6/Extension | Allies destroyed B-75 Beast 14315 | -6/Extension | Destroyed B-75 Beast 14334 | -6/Extension | Lost 4 allies 14602 | -6/Extension | Rescued a captive Derelict 14609 | -6/Extension | Rescued a captive Derelict 14643 | -6/Extension | Lost 3 allies 14752 | -6/Extension | First assault squad dispatched 14817 | -6/Extension | Discovered new exit (range 10) 14820 | -6/Extension | Discovered new exit (range 6) 14836 | -6/Extension | Identified exit to Cetus 14861 | -6/Extension | Entered Cetus 14861 | -6/Cetus | Accompanied by 7 allies (A7) 14866 | -6/Cetus | Acquired a Cetus Manufacturing Module code from A7 14870 | -6/Cetus | Attached CPS modules to A7. 14890 | -6/Cetus | Spotted Cetus Guard 14890 | -6/Cetus | Spotted Cetus Guard 14891 | -6/Cetus | Spotted Cetus Guard 14892 | -6/Cetus | Spotted Cetus Guard 14899 | -6/Cetus | Destroyed Cetus Guard 14905 | -6/Cetus | Destroyed Cetus Guard 14906 | -6/Cetus | Allies destroyed Cetus Guard 14916 | -6/Cetus | Allies destroyed Cetus Guard 14943 | -6/Cetus | Lost 4 allies 14974 | -6/Cetus | Started Cetus Manufacturing Module 14983 | -6/Cetus | Escorted A7 to Cetus Mainframe 14995 | -6/Cetus | Discovered new exit (range 15) 14999 | -6/Cetus | Manufactured an Enhanced Grunt 15024 | -6/Cetus | Manufactured an Enhanced Grunt 15049 | -6/Cetus | Manufactured an Enhanced Grunt 15074 | -6/Cetus | Manufactured an Enhanced Grunt 15079 | -6/Cetus | Spotted Cetus Guard 15080 | -6/Cetus | Spotted Cetus Guard 15083 | -6/Cetus | Spotted Cetus Guard 15083 | -6/Cetus | Spotted Cetus Guard 15092 | -6/Cetus | Allies destroyed Cetus Guard 15097 | -6/Cetus | Allies destroyed Cetus Guard 15099 | -6/Cetus | Manufactured an Enhanced Grunt 15103 | -6/Cetus | Allies destroyed Cetus Guard 15105 | -6/Cetus | Allies destroyed Cetus Guard 15110 | -6/Cetus | Discovered new exit (range 15) 15118 | -6/Cetus | Met Revision 17 15162 | -6/Cetus | Identified exit to Archives 15234 | -6/Cetus | Murdered A7 15238 | -6/Cetus | Extracted ID and sensor layout for unrecognized location from A7's data core 15239 | -6/Cetus | Build established: Scavenger-Mutant 15263 | -6/Cetus | Found Prototype Protection 15263 | -6/Cetus | Identified Med. Regenerative Plating 15287 | -6/Cetus | Entered Archives 15287 | -6/Archives | Accompanied by 6 allies 15441 | -6/Archives | Met Zhirov 15447 | -6/Archives | Reinforcements dispatched to Archives 15469 | -6/Archives | Discovered new exit (range 14) 15488 | -6/Archives | Identified exit to Hub_04(d) 15492 | -6/Archives | Reinforcements dispatched to Archives 15494 | -6/Archives | Entered Hub_04(d) 15511 | -6/Hub_04(d) | Network Hub disabled 15534 | -6/Hub_04(d) | Core integrity fell below 50% 15540 | -6/Hub_04(d) | Garrison activated, responded to threat 15581 | -6/Hub_04(d) | Lost 4 parts (1p1n1u1w) 15590 | -6/Hub_04(d) | Spotted Lightning 15594 | -6/Hub_04(d) | Spotted Lightning 15612 | -6/Hub_04(d) | Spotted Lightning 15619 | -6/Hub_04(d) | Network Hub disabled 15620 | -6/Hub_04(d) | Destroyed Lightning 15688 | -6/Hub_04(d) | Core integrity fell below 20% 15692 | -6/Hub_04(d) | Discovered new exit (range 15) 15695 | -6/Hub_04(d) | Spotted Lightning 15697 | -6/Hub_04(d) | Spotted Lightning 15698 | -6/Hub_04(d) | Spotted Lightning 15702 | -6/Hub_04(d) | Destroyed by Lightning with EMDS Last Messages --------------- 15687_ G-50 Soldier overheating. 15688_ Overheating: Core damaged (-102). 15689_ G-50 Soldier heat damages Carbon-fiber Leg. 15689_ Dropped Hcp. Storage Unit. 15689_ Critical hit (Burn: +37). 15690_ Overheating: Gravmag Array damaged (-77). 15690_ Penetrated by EMDS Slug. 15690_ Hvy. Missile Launcher destroyed. 15690_ Penetrated by EMDS Slug. 15690_ Core Analyzer destroyed. 15691_ Power failure, Mic. Antimatter Reactor shutdown. 15692_ EXIT=FOUND 15694_ The unstable cave ceiling collapses. 15694_ A0-MCA's Component Scanner crushed. 15699_ Gravmag Array destroyed. 15699_ Dropped Mic. Antimatter Reactor. 15701_ Acquired 11 matter. 15702_ EMDS Slug penetrates Wall. Map ----- +----------------------------------------------------+ | ?????????????????????????????????????????????????? | | ?????????????????????????????????????????????????? | | ?????????????????????????????????????????????????? | | ?????????????????????????????????????????????????? | | ?????????????????????????????????????????????????? | | ?????????????????????????????????????????????????? | | ?????????????????????????????????????????????????? | | ?????????????????????????????????????????????????? | | ????????????????????????????????????????###??????# | | ????????????????????????????????######### ###### | | ????????????????????????????????# #"" | | ????????????????????????????????# " | | ????????????????????????????????# """"""""# " | | ?????????????????????H??????????# " | | ????????????????????????????????# " | | ?????????????????????????????##### " | | ???????????????????????????? ! * " " | | ???????????????????????????? " " | | ???????????????????????????? " | | ???????????????????????????? | | ????????????????????????????????# &[ " | | ????????????????????????########## !!%= "] | | ????????????????????????# # ![*%! " | | ????????????????????????#=""*" [!# " | | ????????????????????????# """ ]# # ![[ "" | | ????????????????????????#@"""" | | ????????????????????????# """" # | | ????????????????????? < Y | | ?????????????????????? # ! # # | | ?????????????????????####k ! # " # | | ????????????????????????# # " # ## | | ????????????????????????##/########## """ # #? | | ???????????????????????? ???????? % # #? | | ???????????????????????### ??????? # #? | | ??????????????????????????##???????### " ######? | | ?????????????????????????????????????###" #?????? | | ??????????????????????????????????????? " +?????? | | ??????????????????????????????????????? " #?????? | | ??????????????????????????????????????? " #?????? | | ??????????????????????????????????????? " #?????? | | ????????????????????????????????????????" #?????? | | ????????????????????????????????????????" ??????? | | ?????????????????????????????????????????????????? | | ?????????????????????????????????????????????????? | | ?????????????????????????????????????????????????? | | ?????????????????????????????????????????????????? | | ?????????????????????????????????????????????????? | | ?????????????????????????????????????????????????? | | ?????????????????????????????????????????????????? | | ?????????????????????????????????????????????????? | +----------------------------------------------------+ Best States ------------- Heat Dissipation 75 Energy Generation 29 Energy Capacity 635 Matter Stores 300 Matter Capacity 300 Sight Range 22 Robot Scan Range 16 Terrain Scan Density 10 Additional Mass Support 16 Base Temperature (-) 150 Armor Coverage 1600 Resistance: EM 90 Utility Shielding 90 Evasion (%) 54 Targeting Accuracy 20 Core Analysis 6 Recoil Reduction 2 Particle Charging 20 Offensive Hacking 12 Item Schematics ----------------- Hcp. Storage Unit | -10/Materials | Hacked ECM Suite | -10/Materials | Hacked Huge Storage Unit | -10/Materials | Hacked Hacking Suite | -8/Recycling | Hacked Mak. Leg | -8/Scraptown | Extrapolated Deep Structural Scanner | -8/Scraptown | Extrapolated Mak. Coolant Network | -8/Scraptown | Extrapolated Mak. System Shield | -8/Scraptown | Extrapolated Mak. Terrain Scanner | -8/Scraptown | Extrapolated Spk. Treads | -8/Scraptown | Extrapolated Mak. Terrain Scan Processor | -8/Scraptown | Extrapolated 0b10 Decoder Chip [Generic] | -8/Scraptown | Extrapolated 0b10 Decoder Chip [Scout] | -8/Scraptown | Extrapolated 0b10 Decoder Chip [Skirmisher] | -8/Scraptown | Extrapolated Mak. Targeting Computer | -8/Scraptown | Extrapolated Mak. ECM Suite | -6/Factory | Extrapolated Machine Rigger | -6/Factory | Extrapolated Mak. Laser | -6/Factory | Extrapolated Beamcaster | -6/Factory | Extrapolated Hvy. Beamcaster | -6/Factory | Extrapolated Energy Deflector | -6/Factory | Extrapolated Battle Rifle | -6/Factory | Extrapolated Spk. Medium Treads | -6/Factory | Extrapolated Mak. Trap Scanner | -6/Factory | Extrapolated Tactical Coordination Suite | -6/Factory | Extrapolated Mak. Utility Shielding | -6/Factory | Extrapolated 0b10 Decoder Chip [Looter] | -6/Factory | Extrapolated Spk. Heavy Treads | -6/Waste | Extrapolated Mak. Light Armor Plating | -6/Factory | Extrapolated Mak. Medium Armor Plating | -6/Factory | Extrapolated Mak. Ablative Armor | -6/Factory | Extrapolated Mak. Power Source | -6/Factory | Extrapolated Multitool | -6/Factory | Extrapolated Slug Cannon | -6/Factory | Extrapolated Bore Cannon | -6/Factory | Extrapolated Barrage Gun | -6/Extension | Extrapolated Mak. Core Shielding | -6/Extension | Extrapolated Mak. Hacking Suite | -6/Extension | Extrapolated Mak. Flight Unit | -6/Extension | Extrapolated Mak. Propulsion Shielding | -6/Cetus | Extrapolated Mak. Sensor Array | -6/Cetus | Extrapolated Mak. System Restoration Module | -6/Archives | Extrapolated Robot Schematics ------------------ None Fabricated ------------ Nothing Repaired ---------- Lgt. Treads | 62% | -10/Materials Arm. Huge Wheel | 4% | -6/Factory Studied --------- None Alien Tech Used ----------------- None Achievements -------------- None Challenges ------------ None Game ------ Seed DynamicMiningPod Manual? 0 Play Time 02:02:24 Cumulative 763.9 hours Start 2026.04.29 @ 18:02:27 End 2026.04.29 @ 20:06:16 Sessions 1 Manual Loads 0 Difficulty Rogue Special Mode None Game No. 226 Rogue 226 Adventurer 0 Explorer 0 Win Type - Total 28 Types 10/3/7/1/1/0/2/1/1/2 Lore% 95 Gallery% 88 Achievement% 82 Wizard Run 0 Options --------- Layout 1 ASCII 0 Keyboard 0 Movement Mouse Keybinds 0 Fullscreen 2 Font 32/SmallcapsGlow Map View 50x35 Zoom Use 0% Tactical HUD 1 Map Filters NONE Filters NONE Steam 1 RUN: cfb35651-0cc5-47bd-9ed8-0ab68fcf6ef9